bitfinex/quotes_SOLUSD_20251103
["timestamp","ask_amount","ask_price","bid_price","bid_amount"]
[1762209446929,0.2,165.85,165.83,0.14216157]
[1762209447857,0.2,165.85,165.84,0.81216157]
[1762209448039,0.2,165.85,165.84,21.40416157]
[1762209448232,0.2,165.85,165.84,27.43406991]
[1762209449871,0.2,165.85,165.84,20.73416157]
[1762209450028,0.2,165.85,165.84,26.76406991]
[1762209450228,0.2,165.85,165.73,17.65271826]
[1762209450229,0.87,165.85,165.8,6.03136308]
[1762209450540,0.2,165.85,165.81,0.81216157]
[1762209451061,0.2,165.85,165.83,20.592]
[1762209451429,0.2,165.85,165.84,0.14216157]
[1762209452363,0.2,165.85,165.84,6.17206991]
[1762209453273,0.2,165.85,165.81,0.67]
[1762209453555,0.88,165.85,165.78,21.282]
[1762209453728,0.88,165.85,165.79,0.14216157]
[1762209453929,0.88,165.85,165.78,20.592]
[1762209454128,0.88,165.85,165.79,0.69]
[1762209454327,0.88,165.85,165.81,0.14216157]
[1762209454328,0.2,165.85,165.81,0.14216157]
[1762209454548,0.2,165.85,165.83,0.14216157]
[1762209454755,0.2,165.85,165.83,20.73416157]
[1762209456356,0.2,165.85,165.82,6.030293]
[1762209456948,0.88,165.85,165.82,6.030293]
[1762209457130,0.88,165.85,165.8,6.03132598]
[1762209457331,0.68,165.84,165.79,6.03167355]
[1762209457536,0.2,165.85,165.8,0.14216157]
[1762209457933,6.90961283,165.85,165.8,0.69]
[1762209458137,6.90961283,165.85,165.78,6.03198044]
[1762209458428,6.71014798,165.84,165.78,6.03198044]
[1762209458933,0.68,165.83,165.78,6.03198044]
[1762209459135,0.68,165.83,165.74,0.69]
[1762209459450,0.68,165.83,165.72,0.69]
[1762209459629,9.78882769,165.82,165.73,20.592]
[1762209459832,9.78882769,165.82,165.7,6.03492665]
[1762209460034,9.78882769,165.8,165.7,6.03492665]
[1762209460251,6.03172688,165.79,165.73,20.592]
[1762209460456,6.71172688,165.79,165.7,6.03500301]
[1762209460643,0.68,165.78,165.7,6.72500301]
[1762209460958,9.78882769,165.77,165.65,0.69]
[1762209461134,9.78882769,165.77,165.66,0.69]
[1762209461335,0.68,165.76,165.67,20.73416157]
[1762209461762,0.68,165.76,165.67,21.42416157]
[1762209461959,6.71315222,165.76,165.71,20.592]
[1762209462466,0.68,165.75,165.71,20.592]
[1762209463032,0.68,165.75,165.68,6.03573153]
[1762209463257,0.68,165.75,165.64,9.78882769]
[1762209463258,9.78882769,165.74,165.64,0.69]
[1762209463456,9.78882769,165.74,165.65,6.03675101]
[1762209463662,0.68,165.73,165.65,21.12881258]
[1762209463894,0.68,165.73,165.65,41.72081258]
[1762209464567,6.03427468,165.72,165.65,41.72081258]
[1762209464768,6.03427468,165.72,165.65,21.12881258]
[1762209464989,0.68,165.71,165.65,21.12881258]
[1762209466357,0.68,165.71,165.65,6.03675101]
[1762209466563,6.71470677,165.71,165.63,26.62929844]
[1762209466958,0.68,165.7,165.63,26.62929844]
[1762209467282,0.68,165.7,165.63,41.72318239]
[1762209467509,0.68,165.7,165.63,26.62929844]
[1762209467679,0.68,165.7,165.63,6.03729844]
[1762209468082,0.68,165.7,165.64,20.592]
[1762209468390,0.68,165.72,165.66,6.03646021]
[1762209469783,9.78882769,165.71,165.64,6.0371748]
[1762209470175,0.68,165.7,165.64,6.0371748]
[1762209470373,6.71526624,165.7,165.63,21.13063213]
[1762209470769,0.68,165.69,165.63,21.13063213]
[1762209471503,9.78882769,165.68,165.6,6.03840069]
[1762209471711,9.78882769,165.68,165.56,0.69]
[1762209472007,0.68,165.67,165.56,21.82969827]
[1762209472207,0.68,165.67,165.57,0.14216157]
[1762209472413,0.68,165.67,165.59,20.592]
[1762209472573,9.78882769,165.66,165.57,0.69]
[1762209472997,9.78882769,165.64,165.56,26.6321063]
[1762209473212,9.78882769,165.64,165.56,41.73237206]
[1762209473395,0.68,165.63,165.56,21.14037206]
[1762209473599,6.7177356,165.63,165.56,21.14037206]
[1762209473899,6.7177356,165.63,165.56,41.73237206]
[1762209474096,0.68,165.62,165.56,41.73237206]
[1762209476899,6.71801899,165.62,165.56,26.63199902]
[1762209477097,6.71801899,165.62,165.56,20.592]
[1762209477405,0.68,165.61,165.56,20.592]
[1762209477592,6.71839071,165.61,165.56,20.592]
[1762209477999,0.68,165.6,165.56,20.592]
[1762209478303,0.68,165.6,165.56,26.63209985]
[1762209479701,6.71877484,165.6,165.55,0.2]
[1762209479886,10.46882769,165.59,165.55,0.2]
[1762209480297,0.68,165.58,165.55,0.2]
[1762209481591,6.71946402,165.58,165.55,0.2]
[1762209481777,0.68,165.57,165.55,0.2]
[1762209482178,0.68,165.6,165.55,0.89]
[1762209482410,3.15784698,165.66,165.56,0.14216157]
[1762209482619,0.67,165.65,165.56,0.79216157]
[1762209482782,0.67,165.65,165.58,20.592]
[1762209483191,0.67,165.65,165.59,0.65]
[1762209483399,0.67,165.65,165.58,20.592]
[1762209483583,6.70700812,165.65,165.58,20.592]
[1762209483785,6.70700812,165.65,165.56,0.79216157]
[1762209483994,0.67,165.64,165.56,6.83224767]
[1762209484201,0.67,165.64,165.56,21.93251343]
[1762209484511,0.67,165.64,165.57,0.65]
[1762209485111,0.67,165.64,165.56,21.28251343]
[1762209485407,0.67,165.64,165.56,21.14035186]
[1762209485706,15.82638127,165.63,165.56,6.6900861]
[1762209486305,0.67,165.62,165.56,6.6900861]
[1762209488295,9.78882769,165.61,165.55,0.2]
[1762209488585,0.67,165.6,165.55,0.2]
[1762209489102,9.78882769,165.59,165.55,0.2]
[1762209489621,0.67,165.58,165.55,0.2]
[1762209489802,9.78882769,165.57,165.55,0.2]
[1762209490316,0.67,165.56,165.55,0.2]
[1762209491208,10.45882769,165.56,165.55,0.2]
[1762209491422,31.05082769,165.56,165.55,0.2]
[1762209491592,30.38082769,165.52,165.46,0.2]
[1762209491905,14.85576231,165.47,165.46,0.2]
[1762209492102,21.56915386,165.47,165.46,0.2]
[1762209492312,30.38082769,165.46,165.38,0.2]
[1762209492512,5.06693462,165.42,165.38,0.2]
[1762209492816,9.78882769,165.39,165.38,0.2]
[1762209492999,9.78882769,165.39,165.26,15.12682281]
[1762209493313,5.06693462,165.33,165.27,6.7007049]
[1762209493520,5.06693462,165.31,165.2,30.26533146]
[1762209493688,5.06693462,165.31,165.21,0.65]
[1762209493902,5.73693462,165.3,165.21,21.83425647]
[1762209494232,5.06693462,165.28,165.19,0.65]
[1762209494395,9.78882769,165.25,165.18,0.65]
[1762209494592,9.78882769,165.27,165.18,0.65]
[1762209494810,9.78882769,165.25,165.18,0.65]
[1762209495015,5.06693462,165.24,165.16,0.65]
[1762209495194,5.73693462,165.24,165.16,0.65]
[1762209495394,20.592,165.28,165.11,51.48083095]
[1762209495395,9.78882769,165.22,165.14,0.65]
[1762209495802,0.67,165.21,165.14,21.242]
[1762209496003,0.67,165.21,165.14,0.65]
[1762209496224,0.67,165.21,165.15,6.05510142]
[1762209496809,4.97071737,165.35,165.15,26.64710142]
[1762209497031,5.06693462,165.21,165.15,6.05510142]
[1762209497423,0.67,165.21,165.15,6.05510142]
[1762209497801,9.78882769,165.2,165.15,6.05510142]
[1762209497999,9.78882769,165.2,165.13,27.29763258]
[1762209498219,9.78882769,165.2,165.11,0.65]
[1762209498220,10.45882769,165.19,165.11,0.65]
[1762209498709,0.67,165.18,165.09,20.592]
[1762209498913,0.67,165.18,165.09,21.242]
[1762209499109,0.67,165.18,165.1,0.14216157]
[1762209499308,0.67,165.18,165.1,0.79216157]
[1762209499503,9.78882769,165.17,165.1,0.65]
[1762209500018,0.67,165.16,165.09,20.592]
[1762209500214,0.67,165.16,165.1,6.05693519]
[1762209501031,0.67,165.16,165.1,21.19927316]
[1762209501635,32.24582765,165.32,165.14,20.592]
[1762209501935,5.06693462,165.29,165.12,0.14216157]
[1762209502133,0.67,165.31,165.14,0.14216157]
[1762209502134,9.78882769,165.3,165.14,0.14216157]
[1762209502300,16.50850226,165.3,165.18,21.33116749]
[1762209502502,9.78882769,165.28,165.18,21.33116749]
[1762209502703,9.78882769,165.28,165.19,0.65]
[1762209502924,0.67,165.28,165.2,0.14216157]
[1762209503132,0.67,165.31,165.2,0.14216157]
[1762209503339,0.67,165.31,165.22,0.14216157]
[1762209503533,0.67,165.31,165.24,0.14216157]
[1762209504033,20.592,165.32,165.25,0.65]
[1762209504209,9.78882769,165.32,165.26,6.05107103]
[1762209504410,0.67,165.36,165.27,0.14216157]
[1762209504605,0.67,165.36,165.27,0.79216157]
[1762209505036,20.592,165.35,165.27,0.79216157]
[1762209505337,0.67,165.39,165.3,0.14216157]
[1762209505708,0.67,165.39,165.31,0.65]
[1762209505918,9.78882769,165.38,165.29,20.592]
[1762209506137,9.78882769,165.38,165.3,0.65]
[1762209506312,0.67,165.38,165.31,6.04924082]
[1762209506709,0.67,165.41,165.32,0.65]
[1762209506935,9.78882769,165.42,165.34,20.592]
[1762209507238,9.78882769,165.41,165.34,20.592]
[1762209507414,9.78882769,165.41,165.34,21.242]
[1762209507612,0.67,165.42,165.34,21.242]
[1762209508117,0.67,165.42,165.35,6.04777744]
[1762209508312,0.67,165.42,165.35,21.16722104]
[1762209508634,0.67,165.42,165.35,21.84722104]
[1762209509140,0.67,165.42,165.36,0.68]
[1762209510011,0.72,165.45,165.37,21.16466105]
[1762209510211,9.78882769,165.44,165.37,21.16466105]
[1762209510738,0.72,165.44,165.37,21.16466105]
[1762209511747,10.50882769,165.44,165.37,0.66]
[1762209512734,0.72,165.44,165.37,0.66]
[1762209513137,6.76461105,165.44,165.37,0.66]
[1762209513739,6.76461105,165.44,165.38,6.04668037]
[1762209513921,0.72,165.44,165.38,6.04668037]
[1762209514115,6.76460197,165.44,165.38,6.04668037]
[1762209514740,10.46882769,165.43,165.36,6.04712743]
[1762209514921,0.68,165.42,165.36,6.04712743]
[1762209515612,6.72524069,165.42,165.36,6.04712743]
[1762209517538,15.53576231,165.41,165.31,0.67]
[1762209517729,15.53576231,165.41,165.32,0.67]
[1762209518043,9.78882769,165.39,165.32,0.67]
[1762209518241,9.78882769,165.37,165.32,0.67]
[1762209518743,10.46882769,165.37,165.32,0.67]
[1762209518946,10.46882769,165.37,165.33,6.04850904]
[1762209519417,16.5158849,165.37,165.33,6.04850904]
[1762209519617,9.78882769,165.39,165.33,6.04850904]
[1762209519825,9.78882769,165.39,165.33,6.71850904]
[1762209520420,10.46882769,165.39,165.33,6.71850904]
[1762209521146,16.51531677,165.39,165.33,6.71850904]
[1762209522243,10.46882769,165.39,165.33,6.71850904]
[1762209522433,16.51526814,165.39,165.34,20.592]
[1762209522633,16.51526814,165.39,165.33,6.71850904]
[1762209523428,10.46882769,165.39,165.33,6.71850904]
[1762209524534,16.51520159,165.39,165.33,6.71850904]
[1762209528134,3.95723635,165.38,165.33,6.71850904]
[1762209528331,16.51520159,165.39,165.33,6.71850904]
[1762209528845,16.51520159,165.39,165.32,15.12190991]
[1762209528846,15.83520159,165.39,165.34,0.67]
[1762209529259,9.78882769,165.39,165.34,0.67]
[1762209529428,14.43013396,165.39,165.34,0.67]
[1762209529627,20.47649798,165.39,165.34,0.67]
[1762209529860,16.51519171,165.39,165.34,0.67]
[1762209530242,3.96589333,165.38,165.34,0.67]
[1762209530936,9.78882769,165.4,165.35,6.04777744]
[1762209531137,3.96589333,165.39,165.35,6.04777744]
[1762209531345,3.96589333,165.4,165.35,6.71777744]
[1762209531553,3.96589333,165.39,165.35,6.71777744]
[1762209531760,3.96589333,165.4,165.35,6.71777744]
[1762209531964,3.96589333,165.39,165.35,6.71777744]
[1762209532166,3.96589333,165.38,165.35,6.71777744]
[1762209532349,3.96589333,165.4,165.35,6.71777744]
[1762209532548,16.51465961,165.41,165.35,6.71777744]
[1762209532549,3.96589333,165.39,165.35,6.71777744]
[1762209532749,3.96589333,165.38,165.35,6.71777744]
[1762209532951,10.0120318,165.4,165.35,6.71777744]
[1762209533172,3.96589333,165.39,165.35,6.71777744]
[1762209533462,3.96589333,165.38,165.35,6.71777744]
[1762209533661,0.68,165.4,165.35,6.71777744]
[1762209533844,3.98308402,165.39,165.35,6.71777744]
[1762209534046,3.98308402,165.38,165.35,6.71777744]
[1762209534269,3.98308402,165.37,165.36,0.67]
[1762209534665,3.98308402,165.37,165.34,0.67]
[1762209534850,0.68,165.4,165.35,0.67]
[1762209535061,3.98796665,165.39,165.35,0.67]
[1762209535371,3.98796665,165.38,165.35,0.67]
[1762209535669,3.98796665,165.37,165.35,0.67]
[1762209535854,3.98796665,165.36,165.35,6.71777744]
[1762209537550,11.01666658,165.4,165.35,6.71777744]
[1762209537751,3.99893917,165.39,165.36,0.67]
[1762209537948,3.99893917,165.38,165.36,6.71739604]
[1762209538182,3.99893917,165.37,165.36,0.67]
[1762209540966,3.99893917,165.37,165.36,6.7174117]
[1762209545858,3.99893917,165.37,165.36,6.85957327]
[1762209547766,4.97071737,165.42,165.36,21.97810253]
[1762209548065,4.03836984,165.41,165.37,0.66]
[1762209548383,4.97071737,165.42,165.37,0.66]
[1762209548384,4.03836984,165.4,165.37,0.66]
[1762209548687,4.03836984,165.39,165.37,0.66]
[1762209548867,4.03836984,165.38,165.37,0.80216157]
[1762209549683,4.97071737,165.43,165.39,21.16210169]
[1762209549887,4.04454998,165.42,165.39,21.16210169]
[1762209550188,4.04454998,165.41,165.4,0.66]
[1762209551579,4.04454998,165.41,165.4,6.70594921]
[1762209553081,4.04454998,165.41,165.37,6.04704601]
[1762209553286,4.04454998,165.4,165.37,6.70704601]
[1762209553470,4.04454998,165.39,165.37,6.70704601]
[1762209553669,4.04454998,165.38,165.37,6.04704601]
[1762209554075,4.04454998,165.38,165.37,6.70704601]
[1762209556295,4.04339012,165.38,165.37,6.70704601]
[1762209556600,11.67566266,165.43,165.37,6.70704601]
[1762209556901,4.70370156,165.42,165.37,6.70704601]
[1762209557199,4.04370156,165.41,165.37,6.70704601]
[1762209557400,4.04370156,165.4,165.37,6.70704601]
[1762209557614,4.04370156,165.39,165.38,0.66]
[1762209558980,4.04370156,165.39,165.36,21.82503282]
[1762209559179,6.70522805,165.42,165.37,0.66]
[1762209559389,4.04488653,165.41,165.37,0.66]
[1762209559593,4.04488653,165.4,165.37,0.66]
[1762209559794,4.04488653,165.39,165.37,6.70687853]
[1762209559978,0.66,165.41,165.37,6.70687853]
[1762209560195,4.04488627,165.4,165.37,6.70687853]
[1762209560394,4.04488627,165.39,165.37,6.70687853]
[1762209560594,0.66,165.41,165.37,6.70687853]
[1762209560796,4.04478199,165.4,165.37,6.70687853]
[1762209561005,4.04478199,165.39,165.37,6.70687853]
[1762209561305,0.66,165.41,165.37,6.70687853]
[1762209561603,4.04443335,165.4,165.37,6.70687853]
[1762209561904,4.04443335,165.39,165.37,6.70687853]
[1762209562104,0.66,165.41,165.37,6.70687853]
[1762209562408,4.04427799,165.4,165.37,6.70687853]
[1762209562596,4.04427799,165.39,165.38,0.66]
[1762209562798,4.04427799,165.39,165.36,6.0474117]
[1762209563004,0.66,165.41,165.37,0.66]
[1762209563203,4.04448764,165.4,165.37,0.66]
[1762209563401,4.04448764,165.39,165.37,0.66]
[1762209563605,0.66,165.41,165.37,0.66]
[1762209563901,4.04454931,165.4,165.38,6.04668037]
[1762209564103,4.04454931,165.39,165.38,6.04668037]
[1762209564505,4.04454931,165.39,165.38,6.70668037]
[1762209565014,4.04454931,165.39,165.37,0.66]
[1762209565194,6.70522805,165.42,165.36,21.82594096]
[1762209565397,4.04496549,165.41,165.37,0.66]
[1762209565614,4.04496549,165.4,165.37,0.66]
[1762209565812,4.04496549,165.39,165.37,0.66]
[1762209566015,4.04339509,165.38,165.35,6.7076449]
[1762209566203,4.04339509,165.38,165.33,20.592]
[1762209566204,4.70348081,165.37,165.33,6.04838226]
[1762209566399,4.04317395,165.36,165.33,26.64038226]
[1762209566601,5.63071737,165.4,165.34,0.66]
[1762209566796,4.04316866,165.39,165.34,0.66]
[1762209566997,15.0605664,165.38,165.32,6.0488521]
[1762209567319,12.06027696,165.37,165.29,0.66]
[1762209567614,4.70316866,165.36,165.29,0.66]
[1762209567804,4.04316866,165.35,165.29,0.66]
[1762209568117,4.04316866,165.34,165.29,0.66]
[1762209568319,4.04316866,165.33,165.29,6.70997277]
[1762209568509,4.04316866,165.32,165.29,6.70997277]
[1762209568690,6.04847481,165.34,165.3,0.68]
[1762209568892,4.03992563,165.33,165.3,0.68]
[1762209569098,4.03992563,165.32,165.3,0.68]
[1762209569420,6.72847481,165.34,165.3,0.68]
[1762209569606,4.03883772,165.33,165.3,0.68]
[1762209569804,4.03883772,165.32,165.3,0.68]
[1762209570009,6.72847481,165.34,165.24,6.05152388]
[1762209570010,4.03872838,165.31,165.24,6.05152388]
[1762209570208,10.08845014,165.3,165.25,6.73115902]
[1762209570517,6.72972176,165.3,165.26,0.68]
[1762209570821,4.03549211,165.29,165.26,0.68]
[1762209571316,6.04972176,165.3,165.19,9.78882769]
[1762209571317,0.68,165.28,165.22,0.68]
[1762209571724,4.03226514,165.27,165.22,0.68]
[1762209571919,0.68,165.28,165.22,0.68]
[1762209572112,4.71177725,165.27,165.22,0.68]
[1762209572311,6.73104796,165.27,165.22,6.73251529]
[1762209572512,0.69,165.26,165.22,6.05251529]
[1762209573020,0.69,165.26,165.21,6.0529008]
[1762209573210,0.69,165.26,165.2,0.7]
[1762209573407,0.69,165.26,165.2,6.75319469]
[1762209573612,4.71785616,165.26,165.19,26.64560233]
[1762209574019,0.69,165.25,165.19,26.64560233]
[1762209574519,6.05180343,165.24,165.18,0.2]
[1762209574907,0.69,165.23,165.18,6.25399563]
[1762209575103,9.78882769,165.22,165.18,0.2]
[1762209575612,0.69,165.21,165.18,0.2]
[1762209576502,9.78882769,165.2,165.18,0.2]
[1762209576706,17.6434402,165.2,165.18,0.2]
[1762209576903,10.47882769,165.19,165.18,0.2]
[1762209577120,18.3334402,165.19,165.18,0.2]
[1762209577819,16.53246289,165.19,165.18,0.2]
[1762209578032,10.47882769,165.19,165.18,0.2]
[1762209578216,16.53246289,165.19,165.18,0.2]
[1762209578402,24.3870754,165.19,165.18,0.2]
[1762209579808,16.53246289,165.19,165.18,0.2]
[1762209580002,18.3334402,165.19,165.18,0.2]
[1762209580310,24.52923697,165.19,165.18,0.2]
[1762209581112,28.52113594,165.19,165.18,0.2]
[1762209581800,28.52113594,165.19,165.1,0.7]
[1762209581801,20.592,165.16,165.1,0.7]
[1762209582001,6.05546808,165.14,165.1,0.7]
[1762209582616,6.74546808,165.14,165.1,0.7]
[1762209582802,0.69,165.14,165.1,0.7]
[1762209583005,30.38082769,165.15,165.1,0.7]
[1762209583227,37.12598225,165.15,165.1,0.7]
[1762209584305,37.12598225,165.15,165.1,6.75686773]
[1762209584506,0.69,165.14,165.1,0.7]
[1762209586122,6.7456033,165.14,165.1,0.7]
[1762209586323,0.69,165.14,165.1,6.75682396]
[1762209586711,16.53407867,165.15,165.1,6.75682396]
[1762209587337,0.69,165.14,165.1,6.75682396]
[1762209588033,15.84407867,165.15,165.1,6.75682396]
[1762209588229,16.53407867,165.15,165.1,6.75682396]
[1762209589213,20.592,165.18,165.11,0.7]
[1762209589421,9.78882769,165.17,165.11,0.7]
[1762209589732,31.07082769,165.17,165.11,0.7]
[1762209590535,36.4353594,165.17,165.12,6.05620155]
[1762209590732,0.69,165.16,165.12,6.05620155]
[1762209591239,0.69,165.16,165.12,6.75620155]
[1762209593644,6.74480196,165.16,165.12,6.75620155]
[1762209594020,0.69,165.16,165.12,6.75620155]
[1762209594953,6.74474455,165.16,165.12,6.75620155]
[1762209595327,0.69,165.16,165.12,6.75620155]
[1762209595729,0.69,165.15,165.12,6.05620155]
[1762209596215,31.07082769,165.17,165.1,21.19876585]
[1762209596414,31.07082769,165.17,165.11,0.7]
[1762209597731,0.69,165.16,165.11,0.7]
[1762209598130,0.69,165.16,165.12,6.05620155]
[1762209598526,0.69,165.16,165.12,21.89670542]
[1762209599146,0.69,165.17,165.13,0.7]
[1762209600242,3.16764676,165.19,165.14,21.19413829]
[1762209600436,21.282,165.2,165.14,21.19413829]
[1762209600623,21.282,165.2,165.15,0.7]
[1762209600821,3.16562207,165.22,165.15,0.7]
[1762209601048,4.65608697,165.25,165.16,0.14216157]
[1762209601237,3.96608697,165.25,165.18,0.14216157]
[1762209601541,3.16501883,165.27,165.18,0.14216157]
[1762209601542,3.96608697,165.27,165.18,0.14216157]
[1762209601748,0.69,165.28,165.2,0.14216157]
[1762209602123,4.65608697,165.28,165.21,0.7]
[1762209602348,4.65608697,165.28,165.22,21.18387604]
[1762209602719,4.65608697,165.28,165.23,0.7]
[1762209603147,3.96608697,165.28,165.23,0.7]
[1762209603344,3.96608697,165.27,165.23,0.7]
[1762209603656,5.64071737,165.31,165.23,0.7]
[1762209603657,3.96608697,165.3,165.23,0.7]
[1762209603950,3.16378017,165.34,165.23,0.7]
[1762209603951,3.96608697,165.32,165.24,0.14216157]
[1762209604124,3.96608697,165.33,165.24,0.14216157]
[1762209604326,3.96608697,165.35,165.26,0.14216157]
[1762209604543,3.96608697,165.38,165.29,0.14216157]
[1762209604753,3.16428918,165.4,165.33,0.14216157]
[1762209604967,3.16228794,165.41,165.33,20.73416157]
[1762209605254,0.1,165.45,165.38,0.14216157]
[1762209605622,0.1,165.45,165.4,0.14216157]
[1762209605841,0.1,165.45,165.39,0.7]
[1762209606246,0.1,165.45,165.4,6.04594921]
[1762209606546,0.1,165.45,165.41,0.7]
[1762209608238,0.1,165.45,165.42,6.04521823]
[1762209608650,0.1,165.45,165.43,0.7]
[1762209609028,0.1,165.45,165.4,0.7]
[1762209609232,0.1,165.45,165.36,6.0470674]
[1762209609444,0.67,165.44,165.38,0.7]
[1762209610033,9.78882769,165.43,165.34,6.04783594]
[1762209610233,9.78882769,165.43,165.15,0.21324235]
[1762209610234,9.78882769,165.43,165.36,6.74714248]
[1762209610547,9.78882769,165.43,165.37,0.7]
[1762209610753,10.45882769,165.42,165.35,0.7]
[1762209612346,30.38082769,165.4,165.32,6.04866078]
[1762209612735,31.05082769,165.4,165.33,0.7]
[1762209613547,5.08087659,165.38,165.3,0.7]
[1762209613749,9.78882769,165.37,165.3,0.7]
[1762209614058,10.45882769,165.37,165.3,0.7]
[1762209614432,9.78882769,165.34,165.27,0.7]
[1762209616448,9.78882769,165.34,165.28,6.05033881]
[1762209616658,6.04816125,165.34,165.28,6.05033881]
[1762209617041,6.04816125,165.34,165.28,6.75033881]
[1762209617251,6.71816125,165.34,165.28,6.75033881]
[1762209619358,6.71816125,165.34,165.28,0.7]
[1762209620142,16.50624924,165.36,165.28,6.75033695]
[1762209620438,6.71742155,165.36,165.29,0.84216157]
[1762209620843,6.71742155,165.36,165.3,6.04960677]
[1762209621546,0.67,165.39,165.31,0.84216157]
[1762209621864,9.78882769,165.4,165.31,0.84216157]
[1762209622036,24.90197444,165.42,165.3,41.7656237]
[1762209622037,9.78882769,165.37,165.3,26.64160677]
[1762209622235,0.67,165.36,165.3,26.64160677]
[1762209622459,0.67,165.36,165.3,21.292]
[1762209622840,0.67,165.36,165.31,6.74924082]
[1762209624851,0.67,165.36,165.31,6.04924082]
[1762209625053,0.67,165.36,165.31,6.74924082]
[1762209625358,6.04777744,165.35,165.31,0.7]
[1762209625661,20.91748172,165.35,165.27,0.7]
[1762209625956,0.67,165.34,165.27,0.7]
[1762209626184,9.78882769,165.33,165.27,0.7]
[1762209626662,0.67,165.33,165.27,0.7]
[1762209626853,0.67,165.33,165.21,51.44853169]
[1762209626854,0.67,165.32,165.25,0.7]
[1762209627058,6.71912914,165.32,165.26,6.05107103]
[1762209627534,6.71912914,165.32,165.26,6.75107103]
[1762209627942,10.44882769,165.31,165.24,26.64375457]
[1762209628341,10.44882769,165.31,165.25,0.67]
[1762209628758,9.78882769,165.31,165.25,0.67]
[1762209628936,10.44882769,165.31,165.25,0.67]
[1762209629142,6.04960677,165.3,165.25,6.72134881]
[1762209629350,6.70960677,165.3,165.25,6.72134881]
[1762209629545,0.66,165.3,165.25,6.72134881]
[1762209630266,0.66,165.3,165.25,0.67]
[1762209630968,0.66,165.3,165.25,6.72140763]
[1762209631172,0.66,165.33,165.27,6.0507049]
[1762209631772,6.7085699,165.33,165.27,6.7207049]
[1762209633769,0.68,165.32,165.27,6.0507049]
[1762209634072,9.78882769,165.31,165.26,6.05095569]
[1762209634571,10.46882769,165.31,165.26,6.72095569]
[1762209634877,0.68,165.3,165.24,20.592]
[1762209635071,0.68,165.3,165.25,0.67]
[1762209635846,9.78882769,165.29,165.18,30.27000847]
[1762209636158,9.78882769,165.29,165.23,0.67]
[1762209636360,9.78882769,165.27,165.19,0.67]
[1762209636872,10.46882769,165.27,165.19,0.67]
[1762209637565,10.46882769,165.27,165.2,0.14216157]
[1762209637566,0.68,165.27,165.2,0.14216157]
[1762209637744,25.67287659,165.31,165.21,21.85515827]
[1762209637940,5.08087659,165.3,165.21,21.85515827]
[1762209638668,5.08087659,165.3,165.22,0.67]
[1762209638851,6.04997277,165.29,165.22,0.67]
[1762209639168,5.08087659,165.25,165.14,0.67]
[1762209639349,5.08087659,165.22,165.14,0.67]
[1762209639854,5.08087659,165.22,165.13,0.2]
[1762209639855,9.78882769,165.19,165.13,0.2]
[1762209640204,5.08087659,165.21,165.13,22.06540168]
[1762209640343,1.955489,165.21,165.13,6.92581469]
[1762209640965,9.78882769,165.19,165.13,6.92581469]
[1762209642555,9.78882769,165.2,165.13,6.92581469]
[1762209642757,9.78882769,165.2,165.13,22.06540168]
[1762209642963,20.93401366,165.22,165.13,22.06540168]
[1762209643271,5.09255799,165.24,165.14,0.67]
[1762209643478,9.78882769,165.23,165.14,0.67]
[1762209645366,20.592,165.25,165.15,21.19285497]
[1762209645567,20.592,165.25,165.17,0.14216157]
[1762209645897,9.78882769,165.26,165.18,21.262]
[1762209646897,6.05040437,165.28,165.2,0.14216157]
[1762209647203,15.83923206,165.28,165.2,0.14216157]
[1762209647382,9.78882769,165.28,165.21,21.18515827]
[1762209647897,11.1426168,165.29,165.21,21.85515827]
[1762209648989,11.1426168,165.29,165.23,6.0521697]
[1762209648990,6.05005881,165.29,165.23,6.0521697]
[1762209649679,26.64166814,165.3,165.23,21.18259395]
[1762209650676,5.09255799,165.29,165.22,0.67]
[1762209651001,6.0507049,165.27,165.19,0.81216157]